[Event "*** Titled Tuesday Blitz"]
[Site "Chess.com"]
[Date "2020.01.07"]
[Round "1"]
[White "Alexander_Moskalenko"]
[Black "chigorin28"]
[Result "1-0"]
[WhiteElo "2816"]
[BlackElo "2432"]
[TimeControl "180+2"]
[EndTime "13:09:24 PST"]
[Termination "Alexander_Moskalenko won on time"]

1. e4 {[%clk 0:02:57]} 1... c5 {[%clk 0:03:00.8]} 2. Nf3 {[%clk 0:02:57.8]} 2...
d6 {[%clk 0:03:02.4]} 3. d4 {[%clk 0:02:58]} 3... cxd4 {[%clk 0:03:04.3]} 4.
Nxd4 {[%clk 0:02:59.4]} 4... Nf6 {[%clk 0:03:05.9]} 5. Nc3 {[%clk 0:03:01]} 5...
a6 {[%clk 0:03:07.4]} 6. Bc4 {[%clk 0:03:00.5]} 6... e6 {[%clk 0:03:07.8]} 7.
Bb3 {[%clk 0:03:01.9]} 7... Be7 {[%clk 0:03:08.7]} 8. f4 {[%clk 0:03:00.8]} 8...
Qc7 {[%clk 0:03:09.7]} 9. O-O {[%clk 0:02:58.6]} 9... O-O {[%clk 0:03:09.7]} 10.
f5 {[%clk 0:02:59.7]} 10... e5 {[%clk 0:03:07.8]} 11. Nde2 {[%clk 0:03:00.6]}
11... h6 {[%clk 0:03:05.7]} 12. Ng3 {[%clk 0:02:53.6]} 12... b5 {[%clk
0:02:41.2]} 13. Nh5 {[%clk 0:02:29.5]} 13... Nbd7 {[%clk 0:02:18.9]} 14. Nd5
{[%clk 0:02:24.2]} 14... Nxd5 {[%clk 0:02:09.8]} 15. Bxd5 {[%clk 0:02:26.1]}
15... Qa7+ {[%clk 0:01:54.6]} 16. Kh1 {[%clk 0:02:24.2]} 16... Nf6 {[%clk
0:01:53.7]} 17. Nxf6+ {[%clk 0:02:04.7]} 17... Bxf6 {[%clk 0:01:55.6]} 18. Qg4
{[%clk 0:02:05.7]} 18... Kh7 {[%clk 0:01:28.7]} 19. Be3 {[%clk 0:02:01.3]} 19...
Qb8 {[%clk 0:01:27.9]} 20. Rad1 {[%clk 0:01:52.3]} 20... Bb7 {[%clk 0:01:25.6]}
21. Bxb7 {[%clk 0:01:52.9]} 21... Qxb7 {[%clk 0:01:27.2]} 22. Rxd6 {[%clk
0:01:54.7]} 22... Qe7 {[%clk 0:01:14.7]} 23. Bc5 {[%clk 0:01:41.8]} 23... Rac8
{[%clk 0:01:15.9]} 24. Rc6 {[%clk 0:01:35.2]} 24... Qd7 {[%clk 0:01:01.6]} 25.
Rd6 {[%clk 0:01:14.4]} 25... Qc7 {[%clk 0:01:02.4]} 26. b4 {[%clk 0:01:15.1]}
26... Rfd8 {[%clk 0:01:02.6]} 27. Rxa6 {[%clk 0:01:13.5]} 27... Qb7 {[%clk
0:00:57.3]} 28. Ra7 {[%clk 0:01:12]} 28... Qc6 {[%clk 0:00:53.8]} 29. Rxf7
{[%clk 0:01:12.5]} 29... Rd7 {[%clk 0:00:53.7]} 30. Rxd7 {[%clk 0:01:05.8]}
30... Qxd7 {[%clk 0:00:54.1]} 31. Rd1 {[%clk 0:01:07.5]} 31... Qf7 {[%clk
0:00:39.1]} 32. Qe2 {[%clk 0:00:52.4]} 32... Qxa2 {[%clk 0:00:37.3]} 33. Qxb5
{[%clk 0:00:53.5]} 33... Qxc2 {[%clk 0:00:37.4]} 34. Qd3 {[%clk 0:00:55.1]}
34... Qb2 {[%clk 0:00:31.3]} 35. g3 {[%clk 0:00:56]} 35... Rd8 {[%clk
0:00:32.6]} 36. Qf3 {[%clk 0:00:52.6]} 36... Ra8 {[%clk 0:00:31.5]} 37. Rf1
{[%clk 0:00:50.8]} 37... Ra3 {[%clk 0:00:27.7]} 38. Qf2 {[%clk 0:00:45.3]} 38...
Qb3 {[%clk 0:00:25]} 39. Re1 {[%clk 0:00:43.6]} 39... Ra2 {[%clk 0:00:24.4]} 40.
Re2 {[%clk 0:00:45.1]} 40... Ra1+ {[%clk 0:00:22]} 41. Kg2 {[%clk 0:00:46.4]}
41... Qd1 {[%clk 0:00:21.2]} 42. Kh3 {[%clk 0:00:46.9]} 42... Ra3 {[%clk
0:00:18.1]} 43. b5 {[%clk 0:00:42.4]} 43... Rb3 {[%clk 0:00:14.7]} 44. b6 {[%clk
0:00:43.6]} 44... Bd8 {[%clk 0:00:11.3]} 45. Rb2 {[%clk 0:00:36]} 45... Rf3
{[%clk 0:00:10.5]} 46. Qe2 {[%clk 0:00:36.2]} 46... Qh1 {[%clk 0:00:10.8]} 47.
b7 {[%clk 0:00:32.2]} 47... Bc7 {[%clk 0:00:11]} 48. b8=Q {[%clk 0:00:31.1]}
48... Bxb8 {[%clk 0:00:12.1]} 49. Rxb8 {[%clk 0:00:32.9]} 49... Rc3 {[%clk
0:00:04.5]} 50. Bf8 {[%clk 0:00:28.7]} 1-0

[Event "*** Titled Tuesday Blitz"]
[Site "Chess.com"]
[Date "2020.01.07"]
[Round "1"]
[White "WelshTiger"]
[Black "JustaTrickstar"]
[Result "0-1"]
[WhiteElo "2382"]
[BlackElo "2744"]
[TimeControl "180+2"]
[EndTime "13:09:24 PST"]
[Termination "JustaTrickstar won on time"]

1. e4 {[%clk 0:03:00.6]} 1... d6 {[%clk 0:03:00.2]} 2. d4 {[%clk 0:03:01.4]}
2... Nf6 {[%clk 0:03:01.8]} 3. Nc3 {[%clk 0:03:02.6]} 3... g6 {[%clk 0:03:02.5]}
4. f4 {[%clk 0:03:03.1]} 4... Bg7 {[%clk 0:03:03.6]} 5. Nf3 {[%clk 0:03:04.1]}
5... c5 {[%clk 0:03:05]} 6. Bb5+ {[%clk 0:03:05]} 6... Bd7 {[%clk 0:03:05.8]} 7.
e5 {[%clk 0:03:06.2]} 7... Ng4 {[%clk 0:03:04.4]} 8. e6 {[%clk 0:03:07.5]} 8...
Bxb5 {[%clk 0:02:40.8]} 9. exf7+ {[%clk 0:03:07.5]} 9... Kf8 {[%clk 0:02:41.7]}
10. Nxb5 {[%clk 0:02:56.9]} 10... Qa5+ {[%clk 0:02:42.2]} 11. Nc3 {[%clk
0:02:39.7]} 11... cxd4 {[%clk 0:02:43.2]} 12. Nxd4 {[%clk 0:02:40.7]} 12... Kxf7
{[%clk 0:02:39]} 13. Qxg4 {[%clk 0:01:55.9]} 13... Bxd4 {[%clk 0:02:35.6]} 14.
Bd2 {[%clk 0:01:57]} 14... Qf5 {[%clk 0:02:36.5]} 15. Qxf5+ {[%clk 0:01:51.4]}
15... gxf5 {[%clk 0:02:37.1]} 16. O-O-O {[%clk 0:01:52.5]} 16... Nc6 {[%clk
0:02:33.9]} 17. Rhe1 {[%clk 0:01:50.3]} 17... a6 {[%clk 0:02:23.8]} 18. Nd5
{[%clk 0:01:49.8]} 18... Rhg8 {[%clk 0:02:16.6]} 19. g3 {[%clk 0:01:49.2]} 19...
Rac8 {[%clk 0:02:11.4]} 20. c3 {[%clk 0:01:49.4]} 20... Bh8 {[%clk 0:02:04.3]}
21. Be3 {[%clk 0:01:34.2]} 21... e6 {[%clk 0:02:00.1]} 22. Nb6 {[%clk
0:01:35.1]} 22... Rcd8 {[%clk 0:02:01.5]} 23. Rd2 {[%clk 0:01:13.8]} 23... h5
{[%clk 0:01:54.1]} 24. Rde2 {[%clk 0:01:10.2]} 24... Rde8 {[%clk 0:01:41.7]} 25.
Bf2 {[%clk 0:01:06.9]} 25... Bf6 {[%clk 0:01:34.8]} 26. Rd1 {[%clk 0:01:03.5]}
26... d5 {[%clk 0:01:32.6]} 27. Na4 {[%clk 0:01:00.7]} 27... h4 {[%clk
0:01:31.7]} 28. Nc5 {[%clk 0:01:01]} 28... Re7 {[%clk 0:01:32.1]} 29. Rde1
{[%clk 0:01:02.1]} 29... Rge8 {[%clk 0:01:29.5]} 30. gxh4 {[%clk 0:00:57.1]}
30... d4 {[%clk 0:01:29.1]} 31. cxd4 {[%clk 0:00:55.2]} 31... Bxd4 {[%clk
0:01:23.2]} 32. Nd3 {[%clk 0:00:53.4]} 32... Bf6 {[%clk 0:01:20.4]} 33. Ne5+
{[%clk 0:00:46.1]} 33... Nxe5 {[%clk 0:01:08.7]} 34. fxe5 {[%clk 0:00:47]} 34...
Rc7+ {[%clk 0:01:07.1]} 35. Kb1 {[%clk 0:00:47.6]} 35... Be7 {[%clk 0:01:07.1]}
36. Rc2 {[%clk 0:00:44.5]} 36... Rd7 {[%clk 0:01:04.8]} 37. Rc4 {[%clk
0:00:37.8]} 37... Rg8 {[%clk 0:01:04.1]} 38. Bg3 {[%clk 0:00:38.2]} 38... Rgd8
{[%clk 0:01:03.9]} 39. a3 {[%clk 0:00:38.3]} 39... Rd4 {[%clk 0:00:58.9]} 40.
Rec1 {[%clk 0:00:38.2]} 40... Rxc4 {[%clk 0:00:56.3]} 41. Rxc4 {[%clk
0:00:38.8]} 41... Rd7 {[%clk 0:00:58.2]} 42. Kc2 {[%clk 0:00:34.4]} 42... Kg6
{[%clk 0:00:59.1]} 43. Rc8 {[%clk 0:00:28.8]} 43... Bd8 {[%clk 0:01:00.3]} 44.
Bf4 {[%clk 0:00:24.5]} 44... Bxh4 {[%clk 0:00:54.2]} 45. h3 {[%clk 0:00:22.6]}
45... Bd8 {[%clk 0:00:54.8]} 46. b4 {[%clk 0:00:19.1]} 46... Kh5 {[%clk
0:00:48]} 47. Rc3 {[%clk 0:00:15.5]} 47... Rc7 {[%clk 0:00:48.1]} 48. Rxc7
{[%clk 0:00:11.5]} 48... Bxc7 {[%clk 0:00:50]} 49. Kd3 {[%clk 0:00:07.5]} 49...
Kh4 {[%clk 0:00:51.1]} 50. Kd4 {[%clk 0:00:06.3]} 50... Kxh3 {[%clk 0:00:52.4]}
51. Kc5 {[%clk 0:00:07.7]} 51... Kg4 {[%clk 0:00:53.8]} 52. Be3 {[%clk 0:00:04]}
52... f4 {[%clk 0:00:55.3]} 53. Bd4 {[%clk 0:00:05]} 53... f3 {[%clk 0:00:54.4]}
54. a4 {[%clk 0:00:05.9]} 54... Kf4 {[%clk 0:00:54.6]} 55. b5 {[%clk 0:00:05.2]}
55... Bxe5 {[%clk 0:00:52]} 56. bxa6 {[%clk 0:00:03]} 56... Bxd4+ {[%clk
0:00:51]} 57. Kxd4 {[%clk 0:00:04.2]} 57... bxa6 {[%clk 0:00:52.3]} 0-1

[Event "*** Titled Tuesday Blitz"]
[Site "Chess.com"]
[Date "2020.01.07"]
[Round "1"]
[White "Last7Samurai"]
[Black "chess3054"]
[Result "1-0"]
[WhiteElo "2800"]
[BlackElo "2416"]
[TimeControl "180+2"]
[EndTime "13:09:25 PST"]
[Termination "Last7Samurai won by resignation"]

1. d4 {[%clk 0:03:01.9]} 1... e6 {[%clk 0:02:59.8]} 2. Nf3 {[%clk 0:02:59.5]}
2... f5 {[%clk 0:02:57.7]} 3. g3 {[%clk 0:02:57.5]} 3... Nf6 {[%clk 0:02:57.5]}
4. Bg2 {[%clk 0:02:59]} 4... d5 {[%clk 0:02:52.5]} 5. O-O {[%clk 0:02:59.1]}
5... Bd6 {[%clk 0:02:53.2]} 6. b3 {[%clk 0:03:00.3]} 6... Qe7 {[%clk 0:02:52.8]}
7. Bb2 {[%clk 0:03:01.2]} 7... O-O {[%clk 0:02:53]} 8. Qc1 {[%clk 0:03:02.6]}
8... b6 {[%clk 0:02:51.7]} 9. Ba3 {[%clk 0:03:03.3]} 9... c5 {[%clk 0:02:52.8]}
10. c4 {[%clk 0:03:00.9]} 10... Nc6 {[%clk 0:02:28]} 11. cxd5 {[%clk 0:02:51.2]}
11... exd5 {[%clk 0:02:20.7]} 12. dxc5 {[%clk 0:02:52]} 12... bxc5 {[%clk
0:02:21.4]} 13. Nc3 {[%clk 0:02:53]} 13... a6 {[%clk 0:01:33.8]} 14. Na4 {[%clk
0:02:49.6]} 14... Nb4 {[%clk 0:01:32.7]} 15. Bxb4 {[%clk 0:02:27.9]} 15... cxb4
{[%clk 0:01:34.6]} 16. Nd4 {[%clk 0:02:29.4]} 16... Bd7 {[%clk 0:01:29.3]} 17.
Nb6 {[%clk 0:02:29.5]} 17... Rab8 {[%clk 0:01:28.6]} 18. Nxd5 {[%clk 0:02:28.7]}
18... Nxd5 {[%clk 0:01:26]} 19. Bxd5+ {[%clk 0:02:30.6]} 19... Kh8 {[%clk
0:01:27.6]} 20. e3 {[%clk 0:02:21.8]} 20... Rbc8 {[%clk 0:01:22.9]} 21. Qd2
{[%clk 0:02:22]} 21... Be5 {[%clk 0:00:48.3]} 22. Rad1 {[%clk 0:02:20]} 22...
Rfd8 {[%clk 0:00:48.8]} 23. Qe2 {[%clk 0:02:09.8]} 23... a5 {[%clk 0:00:46.2]}
24. Qf3 {[%clk 0:02:10.6]} 24... g6 {[%clk 0:00:46.3]} 25. Ne2 {[%clk 0:02:04]}
25... Bb5 {[%clk 0:00:44]} 26. Rfe1 {[%clk 0:02:01.7]} 26... Rc2 {[%clk
0:00:39.5]} 27. Nf4 {[%clk 0:02:00.2]} 27... Rxa2 {[%clk 0:00:34.2]} 28. e4
{[%clk 0:01:57.7]} 28... Qf6 {[%clk 0:00:20.9]} 29. Ne6 {[%clk 0:01:49.8]} 29...
Re8 {[%clk 0:00:17.8]} 30. exf5 {[%clk 0:01:50.3]} 30... gxf5 {[%clk 0:00:19.7]}
31. Qh5 {[%clk 0:01:44]} 31... Bc3 {[%clk 0:00:08.2]} 32. Ng5 {[%clk 0:01:39.6]}
32... Qg6 {[%clk 0:00:07.1]} 33. Rxe8+ {[%clk 0:01:32.1]} 33... Bxe8 {[%clk
0:00:06.6]} 34. Qh4 {[%clk 0:01:22.1]} 34... Bf6 {[%clk 0:00:05.1]} 35. f4
{[%clk 0:01:21.9]} 35... Qg7 {[%clk 0:00:03.9]} 36. Re1 {[%clk 0:01:18.7]} 36...
Bg6 {[%clk 0:00:04.1]} 37. Qh3 {[%clk 0:01:12.8]} 37... h6 {[%clk 0:00:05.1]}
38. Ne6 {[%clk 0:01:10.3]} 38... Qh7 {[%clk 0:00:04.7]} 39. Nf8 {[%clk
0:01:04.5]} 39... Qg7 {[%clk 0:00:05.3]} 40. Nxg6+ {[%clk 0:01:05.3]} 40... Qxg6
{[%clk 0:00:07.1]} 41. Qf1 {[%clk 0:01:05.3]} 41... Bd4+ {[%clk 0:00:08]} 42.
Kh1 {[%clk 0:01:06.5]} 42... Qd6 {[%clk 0:00:09.3]} 43. Bg2 {[%clk 0:01:05.2]}
43... Kg7 {[%clk 0:00:06.5]} 44. Qc4 {[%clk 0:01:01.6]} 44... Bf6 {[%clk
0:00:07.2]} 45. h4 {[%clk 0:00:55.8]} 45... Qd2 {[%clk 0:00:08.2]} 46. Qc7+
{[%clk 0:00:53.7]} 46... Kg6 {[%clk 0:00:08.6]} 47. h5+ {[%clk 0:00:49.5]} 47...
Kxh5 {[%clk 0:00:09.9]} 48. Qf7+ {[%clk 0:00:50.7]} 48... Kg4 {[%clk 0:00:11.3]}
49. Qg6+ {[%clk 0:00:34.1]} 49... Bg5 {[%clk 0:00:12.6]} 50. Rg1 {[%clk
0:00:35.4]} 50... Kxg3 {[%clk 0:00:10.9]} 51. fxg5 {[%clk 0:00:32.6]} 51... hxg5
{[%clk 0:00:12.8]} 52. Be4+ {[%clk 0:00:30.4]} 52... Kf4 {[%clk 0:00:10.8]} 53.
Qxf5+ {[%clk 0:00:31.7]} 53... Ke3 {[%clk 0:00:11.4]} 54. Qf3+ {[%clk 0:00:33]}
54... Kd4 {[%clk 0:00:12.7]} 55. Rd1 {[%clk 0:00:34.6]} 55... Qxd1+ {[%clk
0:00:12.2]} 56. Qxd1+ {[%clk 0:00:36.5]} 56... Ke5 {[%clk 0:00:12]} 57. Bg2
{[%clk 0:00:35.8]} 57... Ra3 {[%clk 0:00:12.1]} 58. Qd5+ {[%clk 0:00:36.2]}
58... Kf4 {[%clk 0:00:13.6]} 59. Qe4+ {[%clk 0:00:37.5]} 59... Kg3 {[%clk
0:00:13.9]} 60. Qf3+ {[%clk 0:00:39.2]} 1-0

[Event "*** Titled Tuesday Blitz"]
[Site "Chess.com"]
[Date "2020.01.07"]
[Round "1"]
[White "pedroholly22"]
[Black "StephenDedalus83"]
[Result "0-1"]
[WhiteElo "2355"]
[BlackElo "2709"]
[TimeControl "180+2"]
[EndTime "13:09:26 PST"]
[Termination "StephenDedalus83 won by resignation"]

1. e4 {[%clk 0:02:53.9]} 1... g6 {[%clk 0:02:59.1]} 2. d4 {[%clk 0:02:53.8]}
2... Bg7 {[%clk 0:03:00.5]} 3. Nc3 {[%clk 0:02:55.1]} 3... d6 {[%clk 0:03:01.2]}
4. Be3 {[%clk 0:02:55.5]} 4... a6 {[%clk 0:03:01.5]} 5. Qd2 {[%clk 0:02:56.5]}
5... b5 {[%clk 0:03:01.9]} 6. f3 {[%clk 0:02:57.8]} 6... Bb7 {[%clk 0:03:01.9]}
7. g4 {[%clk 0:02:54.9]} 7... Nd7 {[%clk 0:03:02.6]} 8. Nge2 {[%clk 0:02:53.1]}
8... c5 {[%clk 0:02:59.8]} 9. h4 {[%clk 0:02:48.4]} 9... h6 {[%clk 0:02:54.4]}
10. h5 {[%clk 0:02:45.5]} 10... g5 {[%clk 0:02:54.7]} 11. Ng3 {[%clk 0:02:46.1]}
11... cxd4 {[%clk 0:02:45.4]} 12. Bxd4 {[%clk 0:02:45.1]} 12... Ne5 {[%clk
0:02:41.6]} 13. Be2 {[%clk 0:02:42]} 13... e6 {[%clk 0:02:42.2]} 14. O-O-O
{[%clk 0:02:41.5]} 14... Ne7 {[%clk 0:02:34.5]} 15. Be3 {[%clk 0:02:35.2]} 15...
d5 {[%clk 0:02:34.8]} 16. exd5 {[%clk 0:02:35.7]} 16... Nxd5 {[%clk 0:02:35]}
17. Nxd5 {[%clk 0:02:36.5]} 17... Qxd5 {[%clk 0:02:27.2]} 18. Qxd5 {[%clk
0:02:15.8]} 18... Bxd5 {[%clk 0:02:26.7]} 19. Nf5 {[%clk 0:02:17.4]} 19... exf5
{[%clk 0:02:26.7]} 20. Rxd5 {[%clk 0:02:17.5]} 20... fxg4 {[%clk 0:02:21.8]} 21.
Bd4 {[%clk 0:02:11.3]} 21... f6 {[%clk 0:01:55.5]} 22. fxg4 {[%clk 0:02:01.2]}
22... O-O {[%clk 0:01:55.9]} 23. Bxe5 {[%clk 0:01:59.6]} 23... fxe5 {[%clk
0:01:56]} 24. Bd3 {[%clk 0:02:01.2]} 24... Rf4 {[%clk 0:01:45.7]} 25. Bf5 {[%clk
0:01:53.1]} 25... Re8 {[%clk 0:01:46.3]} 26. Bg6 {[%clk 0:01:48]} 26... Re7
{[%clk 0:01:44.3]} 27. Bf5 {[%clk 0:01:42.9]} 27... e4 {[%clk 0:01:44]} 28. Re1
{[%clk 0:01:42.8]} 28... e3 {[%clk 0:01:42.8]} 29. Rd8+ {[%clk 0:01:43.2]} 29...
Kf7 {[%clk 0:01:41.2]} 30. c3 {[%clk 0:01:37.9]} 30... Be5 {[%clk 0:01:34.7]}
31. Bg6+ {[%clk 0:01:17.3]} 31... Kg7 {[%clk 0:01:34.2]} 32. Rxe3 {[%clk
0:01:15.2]} 32... Rxg4 {[%clk 0:01:34.7]} 33. Kc2 {[%clk 0:01:15.2]} 33... Rg2+
{[%clk 0:01:27]} 34. Kb3 {[%clk 0:01:13.9]} 34... Bf6 {[%clk 0:01:27.4]} 35.
Rxe7+ {[%clk 0:01:07.4]} 35... Bxe7 {[%clk 0:01:28.1]} 36. Rd7 {[%clk 0:01:09]}
36... Re2 {[%clk 0:01:27.6]} 37. Ra7 {[%clk 0:01:09.1]} 37... g4 {[%clk
0:01:28.3]} 38. Rxa6 {[%clk 0:01:04.4]} 38... g3 {[%clk 0:01:28.6]} 39. Bd3
{[%clk 0:00:45.8]} 39... Bg5 {[%clk 0:01:22.8]} 40. Ra7+ {[%clk 0:00:29.7]}
40... Kf6 {[%clk 0:01:20.9]} 41. Ra6+ {[%clk 0:00:30.3]} 41... Ke7 {[%clk
0:01:19.3]} 42. Ra7+ {[%clk 0:00:31]} 42... Kd6 {[%clk 0:01:19]} 43. Ra6+ {[%clk
0:00:30.9]} 43... Kc7 {[%clk 0:01:19.2]} 44. Bxe2 {[%clk 0:00:31.7]} 44... g2
{[%clk 0:01:19.4]} 45. Bxb5 {[%clk 0:00:32.9]} 45... g1=Q {[%clk 0:01:19.7]} 46.
a4 {[%clk 0:00:24.7]} 46... Qd1+ {[%clk 0:01:19.3]} 47. Ka2 {[%clk 0:00:24]}
47... Qxh5 {[%clk 0:01:19.8]} 48. a5 {[%clk 0:00:24.8]} 48... Be3 {[%clk
0:01:18.4]} 49. Bc4 {[%clk 0:00:25.5]} 49... Qc5 {[%clk 0:01:17.1]} 50. Kb3
{[%clk 0:00:24.9]} 50... h5 {[%clk 0:01:16.1]} 51. Rb6 {[%clk 0:00:22.4]} 51...
Qxa5 {[%clk 0:01:15.4]} 52. Rb5 {[%clk 0:00:23.3]} 52... Qa1 {[%clk 0:01:14.1]}
53. Be2 {[%clk 0:00:22.8]} 53... h4 {[%clk 0:01:13.9]} 54. Rh5 {[%clk
0:00:22.6]} 54... Qe1 {[%clk 0:01:12.8]} 55. Bf3 {[%clk 0:00:22.1]} 55... Qg3
{[%clk 0:01:13.2]} 56. Bd1 {[%clk 0:00:22.6]} 56... h3 {[%clk 0:01:13.4]} 57.
Bc2 {[%clk 0:00:23.1]} 57... Qf3 {[%clk 0:01:12]} 58. Rh7+ {[%clk 0:00:23.1]}
58... Kd6 {[%clk 0:01:12.9]} 59. Bd3 {[%clk 0:00:13.8]} 59... Bf4 {[%clk
0:01:11.5]} 60. Rh8 {[%clk 0:00:10.8]} 60... h2 {[%clk 0:01:09.7]} 0-1

[Event "*** Titled Tuesday Blitz"]
[Site "Chess.com"]
[Date "2020.01.07"]
[Round "1"]
[White "tigra"]
[Black "Region_07"]
[Result "1-0"]
[WhiteElo "2744"]
[BlackElo "2378"]
[TimeControl "180+2"]
[EndTime "13:09:27 PST"]
[Termination "tigra won by resignation"]

1. d4 {[%clk 0:03:01.9]} 1... f5 {[%clk 0:02:59]} 2. Bf4 {[%clk 0:03:02.3]} 2...
Nf6 {[%clk 0:02:59.5]} 3. Nf3 {[%clk 0:03:03.9]} 3... d6 {[%clk 0:02:59.2]} 4.
e3 {[%clk 0:03:05.4]} 4... g6 {[%clk 0:02:51.6]} 5. Bc4 {[%clk 0:03:06.3]} 5...
e6 {[%clk 0:02:48]} 6. h3 {[%clk 0:03:05.6]} 6... Bg7 {[%clk 0:02:46]} 7. Qe2
{[%clk 0:03:04.4]} 7... Qe7 {[%clk 0:02:45.3]} 8. Nc3 {[%clk 0:03:04.8]} 8... a6
{[%clk 0:02:45.8]} 9. a4 {[%clk 0:03:03.6]} 9... b6 {[%clk 0:02:46.8]} 10. O-O-O
{[%clk 0:02:59.1]} 10... Bb7 {[%clk 0:02:45.5]} 11. Ng5 {[%clk 0:03:00]} 11...
d5 {[%clk 0:02:35.7]} 12. Bb3 {[%clk 0:03:01.1]} 12... h6 {[%clk 0:02:30.5]} 13.
Nf3 {[%clk 0:03:01.4]} 13... c5 {[%clk 0:02:29.4]} 14. dxc5 {[%clk 0:02:55.4]}
14... bxc5 {[%clk 0:02:31.3]} 15. a5 {[%clk 0:02:53.5]} 15... g5 {[%clk
0:02:24.4]} 16. Bxb8 {[%clk 0:02:49.7]} 16... Rxb8 {[%clk 0:02:25]} 17. Ne5
{[%clk 0:02:48.6]} 17... O-O {[%clk 0:02:22]} 18. Ng6 {[%clk 0:02:49.2]} 18...
Qf7 {[%clk 0:02:17.9]} 19. Nxf8 {[%clk 0:02:50.2]} 19... Qxf8 {[%clk 0:02:16.8]}
20. Ba4 {[%clk 0:02:27.9]} 20... c4 {[%clk 0:02:14.2]} 21. Na2 {[%clk
0:02:23.3]} 21... Qc5 {[%clk 0:02:05.9]} 22. b4 {[%clk 0:02:20.3]} 22... cxb3
{[%clk 0:01:55.7]} 23. Bxb3 {[%clk 0:02:21.5]} 23... Bc6 {[%clk 0:01:52.4]} 24.
Kb1 {[%clk 0:01:51.6]} 24... Ne4 {[%clk 0:01:45.4]} 25. Qxa6 {[%clk 0:01:47.7]}
25... Nc3+ {[%clk 0:01:32.4]} 26. Nxc3 {[%clk 0:01:48.3]} 26... Qxc3 {[%clk
0:01:34.3]} 27. Rd4 {[%clk 0:01:49]} 27... Rxb3+ {[%clk 0:00:57.1]} 28. cxb3
{[%clk 0:01:49.4]} 28... Qxb3+ {[%clk 0:00:55.3]} 29. Kc1 {[%clk 0:01:50.7]}
29... Bxd4 {[%clk 0:00:47.5]} 30. Qxc6 {[%clk 0:01:42.3]} 30... Qb2+ {[%clk
0:00:42.3]} 31. Kd1 {[%clk 0:01:43]} 31... Bc3 {[%clk 0:00:42.6]} 32. Qxe6+
{[%clk 0:01:42.9]} 32... Kg7 {[%clk 0:00:36.2]} 33. Qd7+ {[%clk 0:01:02]} 33...
Kh8 {[%clk 0:00:25.6]} 34. Qd8+ {[%clk 0:00:52.3]} 34... Kg7 {[%clk 0:00:24.1]}
35. Qc7+ {[%clk 0:00:27.9]} 35... Kh8 {[%clk 0:00:23.2]} 36. Qd8+ {[%clk
0:00:23.2]} 36... Kg7 {[%clk 0:00:23.5]} 37. Qxd5 {[%clk 0:00:24]} 37... Qb1+
{[%clk 0:00:22.8]} 38. Ke2 {[%clk 0:00:25.2]} 38... Qxh1 {[%clk 0:00:24.7]} 39.
Qb7+ {[%clk 0:00:14.9]} 39... Kg6 {[%clk 0:00:17.6]} 40. Qc6+ {[%clk 0:00:15.7]}
40... Bf6 {[%clk 0:00:18.1]} 41. a6 {[%clk 0:00:16.4]} 41... Qa1 {[%clk
0:00:17.1]} 42. Qe8+ {[%clk 0:00:16.5]} 42... Kg7 {[%clk 0:00:17]} 43. Qd7+
{[%clk 0:00:18.4]} 43... Kg6 {[%clk 0:00:18]} 44. a7 {[%clk 0:00:15.9]} 44...
Qb2+ {[%clk 0:00:15]} 45. Kf3 {[%clk 0:00:16.1]} 45... Qa2 {[%clk 0:00:12.7]}
46. Qe8+ {[%clk 0:00:16.3]} 46... Kg7 {[%clk 0:00:13]} 47. a8=Q {[%clk
0:00:16.5]} 47... g4+ {[%clk 0:00:12.4]} 48. hxg4 {[%clk 0:00:17.2]} 48... fxg4+
{[%clk 0:00:12.5]} 49. Kg3 {[%clk 0:00:17.4]} 49... Qc4 {[%clk 0:00:14.4]} 50.
Qb7+ {[%clk 0:00:17.2]} 1-0